fUST/lending_fUST_20251011
["ID","MTS","AMOUNT","RATE_DAILY","PERIOD"]
[390878328,1760183490141,-2422.96,0.00024657,9]
[390878329,1760183490151,-500.0,0.00024657,9]
[390878330,1760183490160,-2422.96,0.00024657,9]
[390878331,1760183490170,-500.0,0.00024657,9]
[390878332,1760183490179,-2422.96,0.00024657,9]
[390878333,1760183490188,-500.0,0.00024657,9]
[390878334,1760183490198,-2422.96,0.00024657,9]
[390878335,1760183490207,-386.18,0.00024657,9]
[390878336,1760183490217,-2423.19,0.00024657,9]
[390878337,1760183490226,-298.08050243,0.00028,30]
[390878338,1760183490235,-150.0,0.00029302,2]
[390878339,1760183490245,-391.9198272,0.0002937,30]
[390878340,1760183490255,-297.8851395,0.00029507,30]
[390878341,1760183490264,-588.4106815,0.00029507,30]
[390878342,1760183490274,-162.8757457,0.00029507,30]
[390878343,1760183490283,-298.08050243,0.0003,120]
[390878344,1760183490297,-70002.09261445,0.00030157,20]
[390878345,1760183490312,-20323.37405468,0.00030157,20]
[390878349,1760183725136,-5000.0,0.00018655,10]
[390878350,1760183725161,-254.24,0.00018824,2]
[390878351,1760183725185,-150.0,0.00018843,2]
[390878352,1760183725208,-172.5,0.00019443,2]
[390878353,1760183725231,-195.0,0.00020043,2]
[390878354,1760183725254,-228.26,0.00020535,2]
[390878355,1760183907203,-5000.0,0.0002033,2]
[390878356,1760183907224,-1000.0,0.00020609,2]
[390878357,1760183907247,-217.5,0.00020643,2]
[390878358,1760183907268,-1280.4459646,0.00020888,2]
[390878359,1760183912159,502.0540354,0.00021,2]
[390878360,1760183924687,-4497.9459646,0.00021,2]
[390878361,1760183978452,-48328.8751444,0.00020838,2]
[390878362,1760184025467,-1200.0,0.0002103,2]
[390878363,1760184025498,-5000.0,0.00021031,2]
[390878364,1760184025523,-200.0,0.00021031,2]
[390878365,1760184038403,282.85,0.00018868,2]
[390878366,1760184038825,565.7,0.00020583,2]
[390878367,1760184046187,2751.45,0.000211,2]
[390878368,1760184067598,-2248.55,0.000211,2]
[390878369,1760184085815,-240.0,0.00021243,2]
[390878370,1760184090645,5000.0,0.00021243,2]
[390878371,1760184113606,805.14354966,0.00021243,2]
[390878372,1760184113973,-1046.8374927,0.00021251,2]
[390878373,1760184119573,301.84,0.00018835,2]
[390878374,1760184119964,-300.0,0.00021253,2]
[390878375,1760184120008,603.68,0.00020548,2]
[390878376,1760184122354,300.0,0.00021253,2]
[390878377,1760184136894,-50000.0,0.00021254,2]
[390878378,1760184163311,-300.0,0.00021254,20]
[390878379,1760184163334,-300.0,0.00021254,20]
[390878380,1760184163356,-300.0,0.00021254,20]
[390878381,1760184163378,-300.0,0.00021254,20]
[390878382,1760184163399,-300.0,0.00021254,20]
[390878383,1760184163420,-300.0,0.00021254,20]
[390878384,1760184163442,-300.0,0.00021254,20]
[390878385,1760184163465,-300.0,0.00021254,20]
[390878386,1760184163486,-300.0,0.00021254,20]
[390878387,1760184163510,-300.0,0.00021254,20]
[390878388,1760184163534,-300.0,0.00021254,20]
[390878389,1760184163557,-300.0,0.00021254,20]
[390878390,1760184163580,-300.0,0.00021254,20]
[390878391,1760184163603,-300.0,0.00021254,20]
[390878392,1760184163626,-300.0,0.00021254,20]
[390878393,1760184165308,-262.5,0.00021843,2]
[390878394,1760184199565,290.31,0.00018829,2]
[390878395,1760184199982,580.63,0.0002054,2]
[390878398,1760184279008,304.05,0.00018838,2]
[390878399,1760184279432,608.1,0.0002055,2]
[390878400,1760184359028,292.44,0.00018008,2]
[390878401,1760184359443,584.88,0.00018865,2]
[390878402,1760184359761,-1673.198006,0.00021936,2]
[390878403,1760184359874,877.32,0.00019723,2]
[390878404,1760184360353,1169.76,0.0002058,2]
[390878405,1760184360756,1462.2,0.00021438,2]
[390878406,1760184362666,369653.57,0.0003007,120]
[390878409,1760184438679,236.61,0.00017993,2]
[390878410,1760184439114,473.22,0.0001885,2]
[390878411,1760184439553,709.83,0.00019707,2]
[390878412,1760184440110,946.44,0.00020564,2]
[390878413,1760184440662,778.233988,0.00021421,2]
[390878414,1760184440683,404.816012,0.00021421,2]
[390878415,1760184441454,-201.29291211,0.00021947,2]
[390878416,1760184441482,-150.0,0.00021947,2]
[390878420,1760184480992,160.95,0.00015225,2]
[390878421,1760184481370,160.93,0.00015225,2]
[390878424,1760184505449,-239.69440039,0.00021988,2]
[390878425,1760184508025,-60.30559961,0.00021988,2]
[390878426,1760184508046,-132.8467577,0.00021989,2]
[390878427,1760184511654,-60.1532423,0.00021989,2]
[390878428,1760184511674,-118.25888073,0.00021989,2]
[390878429,1760184530821,191.44,0.00017981,2]
[390878430,1760184531245,382.88,0.00018837,2]
[390878431,1760184531697,574.32,0.00019693,2]
[390878432,1760184532108,765.76,0.00020549,2]
[390878433,1760184532537,957.2,0.00021406,2]
[390878434,1760184535129,-357.02762367,0.00021989,2]
[390878435,1760184536655,-173.79194429,0.00021989,2]
[390878436,1760184538645,-168.0,0.00021989,2]
[390878437,1760184540714,-199.65,0.00021989,2]
[390878438,1760184542731,-183.27155131,0.00021989,2]
[390878439,1760184542753,-15.01706846,0.00021989,2]
[390878440,1760184548750,-273.25091656,0.00021989,2]
[390878441,1760184564897,-333.76856438,0.00021989,2]
[390878442,1760184566329,-418.19251606,0.00021989,2]
[390878443,1760184567707,-159.77093454,0.00021989,2]
[390878444,1760184567730,-10.69281627,0.00021989,2]
[390878445,1760184569171,-251.50463339,0.00021989,2]
[390878446,1760184572120,-37.80255034,0.00021989,2]
[390878447,1760184572140,-148.42365743,0.0002199,2]
[390878448,1760184573490,-466.61589249,0.0002199,2]
[390878449,1760184574879,-251.03957046,0.0002199,2]
[390878450,1760184580205,-305.83261581,0.0002199,2]
[390878451,1760184582789,-211.16811769,0.0002199,2]
[390878452,1760184602661,-150.0,0.00021989,2]
[390878453,1760184603127,-9529.60448062,0.0002199,2]
[390878454,1760184603172,-10000.01,0.0002199,2]
[390878455,1760184603334,-4886.08536951,0.0002199,2]
[390878456,1760184603358,-227.83926098,0.0002199,2]
[390878457,1760184603501,-376.14645917,0.00022139,2]
[390878458,1760184603530,-1148.64,0.00022262,2]
[390878459,1760184603558,-158.02182155,0.00022329,2]
[390878460,1760184603588,-600.0,0.00022385,20]
[390878461,1760184603619,-300.0,0.00022429,20]
[390878462,1760184603650,-300.0,0.00022429,20]
[390878463,1760184603684,-300.0,0.00022429,20]
[390878464,1760184603715,-300.0,0.00022429,20]
[390878465,1760184603745,-300.0,0.00022429,20]
[390878466,1760184603774,-300.0,0.00022429,20]
[390878467,1760184603805,-300.0,0.00022429,20]
[390878468,1760184603837,-300.0,0.00022429,20]
[390878469,1760184603869,-300.0,0.00022429,20]
[390878470,1760184603964,-300.0,0.00022429,20]
[390878471,1760184603994,-300.0,0.00022429,20]
[390878472,1760184604024,-300.0,0.00022429,20]
[390878473,1760184604055,-300.0,0.00022429,20]
[390878474,1760184604084,-300.0,0.00022429,20]
[390878475,1760184604117,-300.0,0.00022429,20]
[390878476,1760184604432,-34.39343856,0.00022429,2]
[390878477,1760184604445,-6400.01,0.00022429,2]
[390878478,1760184604479,-10000.01,0.00022429,2]
[390878479,1760184604501,-5070.07526884,0.00022429,2]
[390878480,1760184604512,-172.5,0.00022547,2]
[390878481,1760184604522,-500.0,0.00022973,2]
[390878482,1760184604532,-321.53753827,0.00022973,2]
[390878483,1760184604543,-500.0,0.00022973,2]
[390878484,1760184604553,-500.0,0.00022973,2]
[390878485,1760184604565,-500.0,0.00022973,2]
[390878486,1760184604576,-500.0,0.00022973,2]
[390878487,1760184604586,-500.0,0.00022973,2]
[390878488,1760184604597,-500.0,0.00022973,2]
[390878489,1760184604607,-501.84242892,0.00022973,2]
[390878490,1760184604619,-434.05476397,0.00022973,2]
[390878491,1760184604633,-65.94523603,0.00022973,2]
[390878492,1760184604643,-500.0,0.00022973,2]
[390878493,1760184604652,-500.0,0.00022973,2]
[390878494,1760184604662,-500.0,0.00022973,2]
[390878495,1760184604676,-500.0,0.00022973,2]
[390878496,1760184604685,-500.0,0.00022973,2]
[390878497,1760184604695,-500.0,0.00022973,2]
[390878498,1760184604704,-500.0,0.00022973,2]
[390878499,1760184604715,-500.0,0.00022973,2]
[390878500,1760184604724,-500.0,0.00022973,2]
[390878501,1760184604733,-1555.95,0.0002299,3]
[390878502,1760184604743,-777.98,0.0002299,3]
[390878503,1760184604754,-388.99,0.0002299,3]
[390878504,1760184604763,-194.49,0.0002299,3]
[390878505,1760184604772,-583.51,0.0002299,3]
[390878506,1760184604782,-500.0,0.00022999,2]
[390878507,1760184604792,-500.0,0.00022999,2]
[390878508,1760184604802,-500.22403618,0.00022999,2]
[390878509,1760184604811,-432.92072779,0.00022999,2]
[390878510,1760184606719,-67.07927221,0.00022999,2]
[390878511,1760184606747,-214.23712374,0.00022999,2]
[390878512,1760184606781,-500.0,0.00022999,2]
[390878513,1760184606811,-500.0,0.00022999,2]
[390878514,1760184606842,-500.0,0.00022999,2]
[390878515,1760184606875,-500.0,0.00022999,2]
[390878516,1760184606904,-317.37830126,0.00022999,2]
[390878517,1760184606935,-500.0,0.00022999,2]
[390878518,1760184606965,-171.41681752,0.00022999,2]
[390878519,1760184606996,-269.26298613,0.00022999,2]
[390878520,1760184607027,-500.0,0.00022999,2]
[390878521,1760184607057,-282.45,0.00022999,2]
[390878522,1760184607084,-500.0,0.00022999,2]
[390878523,1760184607146,-414.09,0.00022999,2]
[390878524,1760184607173,-1000.0,0.00022999,2]
[390878525,1760184607443,-356.36099828,0.00023,2]
[390878526,1760184607457,-7171.83,0.00023,2]
[390878527,1760184607479,-10000.01,0.00023,2]
[390878528,1760184608596,-500.0,0.00022973,2]
[390878529,1760184608638,-1200.0,0.00022998,2]
[390878530,1760184608647,-7800.01,0.00023,2]
[390878531,1760184609027,-10000.01,0.00023,2]
[390878532,1760184610402,-10000.01,0.00023,2]
[390878533,1760184610559,-10000.01,0.00023,2]
[390878534,1760184610678,-10000.01,0.00023,2]
[390878535,1760184610798,-10000.01,0.00023,2]
[390878536,1760184610908,-10000.01,0.00023,2]
[390878537,1760184611020,-10000.01,0.00023,2]
[390878538,1760184612773,-10000.01,0.00023,2]
[390878539,1760184612988,-10000.01,0.00023,2]
[390878540,1760184614332,-344.09062189,0.00023,2]
[390878541,1760184614613,-10000.01,0.00023,2]
[390878542,1760184614748,-10000.01,0.00023,2]
[390878543,1760184614864,-10000.01,0.00023,2]
[390878544,1760184614969,-10000.01,0.00023,2]
[390878545,1760184615085,-10000.01,0.00023,2]
[390878546,1760184615198,-10000.01,0.00023,2]
[390878547,1760184615451,-150.0,0.00017973,2]
[390878548,1760184615485,-9700.01,0.00023,2]
[390878549,1760184615619,-10000.01,0.00023,2]
[390878550,1760184616639,-280.55,0.00018828,2]
[390878551,1760184616672,-420.82,0.00019684,2]
[390878552,1760184616729,-561.09,0.0002054,2]
[390878553,1760184616739,-8036.18,0.00023,2]
[390878554,1760184629776,-5000.0,0.00021182,10]
[390878555,1760184629810,-0.01,0.00021396,2]
[390878556,1760184629989,-701.36,0.00021396,2]
[390878574,1760184631721,-841.64,0.00022252,2]
[390878576,1760184631732,-357.87,0.0002299,3]
[390878578,1760184631741,-88167.17280085,0.00023,2]
[390878632,1760184637783,-108424.17557898,0.00023,2]
[390878633,1760184637792,-500.0,0.00023,5]
[390878634,1760184637802,-981.91,0.00023108,2]
[390878635,1760184637811,-195.0,0.00023147,2]
[390878636,1760184637820,-500.0,0.00023274,5]
[390878637,1760184637829,-1000.0,0.00023521,2]
[390878638,1760184637838,-1000.0,0.00023521,2]
[390878639,1760184637847,-579.37251432,0.00023521,2]
[390878640,1760184637856,-492.0,0.00023521,2]
[390878641,1760184637865,-295.79589381,0.00023521,2]
[390878643,1760184637874,-1000.0,0.00023521,2]
[390878644,1760184637883,-514.57367624,0.00023521,2]
[390878645,1760184637892,-1000.0,0.00023521,2]
[390878646,1760184637903,-1000.0,0.00023521,2]
[390878647,1760184637912,-1000.0,0.00023521,2]
[390878648,1760184637922,-1000.0,0.00023521,2]
[390878649,1760184637931,-1000.0,0.00023521,2]
[390878650,1760184637940,-1000.0,0.00023521,2]
[390878651,1760184637949,-1005.28069607,0.00023521,2]
[390878652,1760184637958,-1000.0,0.00023521,2]
[390878653,1760184637977,-1007.73353099,0.00023521,2]
[390878654,1760184637987,-500.0,0.00023548,5]
[390878655,1760184637996,-217.5,0.00023647,2]
[390878656,1760184638006,-177.86,0.00023647,2]
[390878657,1760184638016,-177.86,0.00023647,2]
[390878658,1760184638025,-177.86,0.00023647,2]
[390878659,1760184638035,-217.5,0.00023747,2]
[390878660,1760184638045,-500.0,0.00023822,5]
[390878661,1760184638054,-732.0,0.00023895,2]
[390878662,1760184638064,-1122.19,0.00023963,2]
[390878663,1760184638073,-1501.71126757,0.00024068,2]
[390878664,1760184638082,-1500.0,0.00024068,2]
[390878665,1760184638092,-1446.97801829,0.00024068,2]
[390878666,1760184638102,-501.93574929,0.00024068,2]
[390878667,1760184638112,-1500.0,0.00024068,2]
[390878668,1760184638123,-1500.0,0.00024068,2]
[390878669,1760184638133,-1500.0,0.00024068,2]
[390878670,1760184638145,-500.0,0.00024068,2]
[390878671,1760184638154,-1500.0,0.00024068,2]
[390878672,1760184638164,-944.09120036,0.00024068,2]
[390878673,1760184638174,-500.0,0.00024096,5]
[390878674,1760184638183,-500.0,0.00024142,2]
[390878675,1760184638192,-500.0,0.00024142,2]
[390878676,1760184638202,-500.0,0.00024142,2]
[390878677,1760184638212,-561.0,0.00024142,2]
[390878678,1760184638221,-500.0,0.00024142,2]
[390878679,1760184638230,-500.0,0.00024142,2]
[390878680,1760184638240,-500.0,0.00024142,2]
[390878681,1760184638250,-500.0,0.00024142,2]
[390878682,1760184638259,-500.0,0.00024142,2]
[390878683,1760184638268,-500.0,0.00024142,2]
[390878684,1760184638278,-500.0,0.00024142,2]
[390878685,1760184638287,-500.0,0.00024142,2]
[390878686,1760184638297,-500.0,0.00024142,2]
[390878687,1760184638307,-500.0,0.00024142,2]
[390878688,1760184638316,-500.0,0.00024142,2]
[390878689,1760184638326,-191.37240413,0.00024142,2]
[390878690,1760184638335,-600022.55573748,0.00024143,2]
[390878691,1760184638345,-500.0,0.00024145,2]
[390878692,1760184638354,-551.10474272,0.00024145,2]
[390878693,1760184638363,-460.19078048,0.00024145,2]
[390878694,1760184638373,-370000.0,0.00024146,2]
[390878695,1760184638383,-3526.62051974,0.00024167,2]
[390878696,1760184638392,-500.0,0.00024173,2]
[390878697,1760184638402,-500.0,0.00024173,2]
[390878698,1760184638411,-361.69385993,0.00024173,2]
[390878699,1760184638421,-500.0,0.00024173,2]
[390878700,1760184638430,-163.24919086,0.00024173,2]
[390878701,1760184638440,-503.16002764,0.00024173,2]
[390878702,1760184638449,-500.0,0.00024173,2]
[390878703,1760184638459,-257.23543379,0.00024173,2]
[390878704,1760184638469,-500.0,0.00024173,2]
[390878705,1760184638479,-503.50225149,0.00024173,2]
[390878706,1760184638488,-500.6605246,0.00024173,2]
[390878707,1760184638498,-500.0,0.00024173,2]
[390878708,1760184638508,-500.0,0.00024173,2]
[390878709,1760184638517,-500.0,0.00024173,2]
[390878710,1760184638527,-500.0,0.00024173,2]
[390878711,1760184638536,-500.0,0.00024173,2]
[390878712,1760184638546,-500.0,0.00024173,2]
[390878713,1760184638555,-500.0,0.00024173,2]
[390878714,1760184638565,-500.0,0.00024173,2]
[390878715,1760184638574,-642.90531971,0.00024173,2]
[390878716,1760184638584,-500.0,0.00024173,2]
[390878717,1760184638594,-500.0,0.00024173,2]
[390878718,1760184638604,-502.27474624,0.00024173,2]
[390878719,1760184638613,-500.0,0.00024173,2]
[390878720,1760184638622,-500.0,0.00024173,2]
[390878721,1760184638632,-500.0,0.00024173,2]
[390878722,1760184638641,-500.0,0.00024173,2]
[390878723,1760184638653,-500.56035074,0.00024173,2]
[390878724,1760184638662,-158.02182155,0.0002424,2]
[390878725,1760184638672,-240.0,0.00024347,2]
[390878726,1760184638681,-3111.9,0.0002436,3]
[390878727,1760184638695,-1555.96,0.0002436,3]
[390878728,1760184638705,-777.98,0.0002436,3]
[390878729,1760184638717,-388.98,0.0002436,3]
[390878730,1760184638727,-1000.0,0.00024369,2]
[390878731,1760184638736,-500.0,0.0002437,5]
[390878732,1760184638745,-18603.8837,0.00024405,2]
[390878733,1760184638755,-250.0,0.00024405,2]
[390878734,1760184638765,-250.0,0.00024405,2]
[390878735,1760184638775,-250.0,0.00024405,2]
[390878736,1760184638785,-250.0,0.00024405,2]
[390878737,1760184638794,-250.0,0.00024405,2]
[390878738,1760184638804,-250.0,0.00024405,2]
[390878739,1760184638814,-500.0,0.00024416,2]
[390878740,1760184638823,-382.31632557,0.00024456,2]
[390878741,1760184638832,-1529.26530226,0.00024456,2]
[390878742,1760184638842,-3437.40608316,0.00024456,2]
[390878743,1760184638851,-1504.58583669,0.00024456,2]
[390878744,1760184638861,-3381.93281442,0.00024456,2]
[390878745,1760184638872,-2000.0,0.00024616,2]
[390878746,1760184638883,-2000.0,0.00024616,2]
[390878747,1760184638899,-2004.07757736,0.00024616,2]
[390878748,1760184638917,-2000.0,0.00024616,2]
[390878749,1760184638929,-1500.0,0.00024616,2]
[390878750,1760184638940,-720.0,0.00024624,20]
[390878751,1760184638952,-336.25,0.00024644,5]
[390878752,1760184638970,-500.0,0.00024657,9]
[390878753,1760184638986,-339.45537178,0.00024657,9]
[390878754,1760184638996,-159.66602016,0.00024657,9]
[390878755,1760184639006,-500.0,0.00024657,9]
[390878756,1760184639016,-500.0,0.00024657,9]
[390878757,1760184639026,-500.0,0.00024657,9]
[390878758,1760184639036,-500.0,0.00024657,9]
[390878759,1760184639045,-520.0,0.00024657,3]
[390878760,1760184639055,-500.0,0.00024657,9]
[390878761,1760184639064,-222.6,0.00024657,9]
[390878762,1760184639074,-500.0,0.00024657,9]
[390878763,1760184639084,-500.0,0.00024657,9]
[390878764,1760184639094,-374.91068525,0.00024657,9]
[390878765,1760184639104,-500.0,0.00024657,9]
[390878766,1760184639114,-500.0,0.00024657,9]
[390878767,1760184639124,-500.0,0.00024657,9]
[390878768,1760184639133,-500.0,0.00024657,9]
[390878769,1760184639144,-500.0,0.00024657,2]
[390878770,1760184639153,-500.0,0.00024657,9]
[390878771,1760184639163,-500.0,0.00024657,9]
[390878772,1760184639173,-500.0,0.00024657,9]
[390878773,1760184639182,-1000.0,0.00024657,2]
[390878774,1760184639191,-500.0,0.00024657,9]
[390878775,1760184639201,-500.0,0.00024657,9]
[390878776,1760184639210,-500.0,0.00024657,9]
[390878777,1760184639219,-500.0,0.00024657,9]
[390878778,1760184639228,-468.1,0.00024657,9]
[390878779,1760184639238,-500.0,0.00024657,9]
[390878780,1760184639248,-500.0,0.00024657,9]
[390878781,1760184639257,-500.0,0.00024657,9]
[390878782,1760184639266,-500.0,0.00024657,9]
[390878783,1760184639275,-500.0,0.00024657,9]
[390878784,1760184639285,-627.55423215,0.00024657,9]
[390878785,1760184639294,-500.0,0.00024657,9]
[390878786,1760184639303,-500.0,0.00024657,9]
[390878787,1760184639313,-500.0,0.00024657,9]
[390878788,1760184639322,-284.44,0.00024657,9]
[390878789,1760184639332,-510.1,0.00024657,9]
[390878790,1760184639341,-500.0,0.00024657,9]
[390878791,1760184639350,-500.0,0.00024657,9]
[390878792,1760184639359,-500.0,0.00024657,9]
[390878794,1760184639369,-500.0,0.00024657,9]
[390878796,1760184639378,-500.0,0.00024657,9]
[390878797,1760184639387,-500.0,0.00024657,9]
[390878798,1760184639397,-500.0,0.00024657,9]
[390878799,1760184639406,-500.0,0.00024657,9]
[390878800,1760184639416,-500.0,0.00024657,9]
[390878801,1760184639425,-500.0,0.00024657,9]
[390878802,1760184639435,-500.0,0.00024657,9]
[390878803,1760184639444,-500.0,0.00024657,9]
[390878804,1760184639454,-500.0,0.00024657,9]
[390878805,1760184639463,-229.06,0.00024657,9]
[390878806,1760184639473,-500.0,0.00024657,9]
[390878808,1760184639482,-500.0,0.00024657,9]
[390878809,1760184639491,-500.0,0.00024657,9]
[390878810,1760184639501,-500.0,0.00024657,9]
[390878811,1760184639510,-500.0,0.00024657,9]
[390878812,1760184639520,-500.0,0.00024657,9]
[390878814,1760184639529,-500.0,0.00024657,9]
[390878815,1760184639539,-500.0,0.00024657,9]
[390878817,1760184639548,-500.0,0.00024657,9]
[390878818,1760184639557,-500.0,0.00024657,9]
[390878819,1760184639566,-500.0,0.00024657,9]
[390878820,1760184639575,-500.0,0.00024657,9]
[390878821,1760184639585,-500.0,0.00024657,9]
[390878822,1760184639594,-500.0,0.00024657,9]
[390878823,1760184639603,-316.86139247,0.00024657,9]
[390878824,1760184639612,-500.0,0.00024657,9]
[390878825,1760184639621,-384.87,0.00024657,9]
[390878826,1760184639630,-501.42285571,0.00024657,9]
[390878827,1760184639639,-500.0,0.00024657,9]
[390878828,1760184639650,-500.0,0.00024657,9]
[390878829,1760184639660,-500.0,0.00024657,9]
[390878830,1760184639669,-500.0,0.00024657,9]
[390878831,1760184639678,-500.0,0.00024657,9]
[390878832,1760184639690,-500.0,0.00024657,9]
[390878833,1760184639699,-480.26,0.00024657,9]
[390878834,1760184639708,-500.0,0.00024657,9]
[390878835,1760184639718,-500.0,0.00024657,9]
[390878836,1760184639727,-500.0,0.00024657,9]
[390878837,1760184639735,-500.0,0.00024657,9]
[390878838,1760184639744,-500.0,0.00024657,9]
[390878839,1760184639754,-500.0,0.00024657,9]
[390878840,1760184639765,-256.4046656,0.00024657,9]
[390878841,1760184639774,-500.0,0.00024657,9]
[390878842,1760184639783,-500.0,0.00024657,9]
[390878843,1760184639792,-390.2,0.00024657,9]
[390878844,1760184639802,-500.0,0.00024657,9]
[390878845,1760184639811,-500.0,0.00024657,9]
[390878846,1760184639821,-500.0,0.00024657,9]
[390878847,1760184639830,-500.0,0.00024657,9]
[390878848,1760184639840,-500.0,0.00024657,9]
[390878849,1760184639848,-500.0,0.00024657,9]
[390878850,1760184639857,-500.0,0.00024657,9]
[390878851,1760184639866,-500.0,0.00024657,9]
[390878852,1760184639875,-296.91688088,0.00024657,9]
[390878853,1760184639884,-500.0,0.00024657,9]
[390878854,1760184639893,-576.08,0.00024657,9]
[390878855,1760184639902,-500.0,0.00024657,9]
[390878856,1760184639912,-500.0,0.00024657,9]
[390878857,1760184639922,-500.0,0.00024657,9]
[390878858,1760184639931,-500.0,0.00024657,9]
[390878859,1760184639940,-604.41114043,0.00024657,9]
[390878860,1760184639949,-500.0,0.00024657,9]
[390878861,1760184639958,-500.0,0.00024657,9]
[390878862,1760184639967,-500.0,0.00024657,9]
[390878863,1760184639977,-500.0,0.00024657,9]
[390878864,1760184639986,-436.21,0.00024657,9]
[390878865,1760184639995,-500.0,0.00024657,9]
[390878866,1760184640004,-500.0,0.00024657,9]
[390878867,1760184640013,-500.0,0.00024657,9]
[390878868,1760184640022,-482.71631558,0.00024657,9]
[390878869,1760184640031,-614.09,0.00024657,9]
[390878870,1760184640040,-614.09,0.00024657,9]
[390878871,1760184640049,-588.51,0.00024657,9]
[390878872,1760184640058,-614.09,0.00024657,9]
[390878873,1760184640067,-614.09,0.00024657,9]
[390878874,1760184640076,-588.51,0.00024657,9]
[390878875,1760184640085,-614.09,0.00024657,9]
[390878876,1760184640094,-588.51,0.00024657,9]
[390878877,1760184640103,-614.09,0.00024657,9]
[390878878,1760184640112,-588.51,0.00024657,9]
[390878879,1760184640121,-614.09,0.00024657,9]
[390878880,1760184640131,-588.51,0.00024657,9]
[390878881,1760184640140,-614.09,0.00024657,9]
[390878882,1760184640150,-588.51,0.00024657,9]
[390878883,1760184640159,-614.09,0.00024657,9]
[390878884,1760184640168,-614.09,0.00024657,9]
[390878885,1760184640177,-614.09,0.00024657,9]
[390878886,1760184640187,-500.0,0.00024657,9]
[390878887,1760184640196,-614.09,0.00024657,9]
[390878888,1760184640204,-614.09,0.00024657,9]
[390878889,1760184640214,-614.09,0.00024657,9]
[390878890,1760184640223,-614.27577018,0.00024657,9]
[390878891,1760184640232,-500.0,0.00024657,9]
[390878892,1760184640241,-500.0,0.00024657,9]
[390878893,1760184640250,-500.0,0.00024657,9]
[390878894,1760184640259,-500.0,0.00024657,9]
[390878895,1760184640268,-500.0,0.00024657,9]
[390878896,1760184640277,-500.0,0.00024657,9]
[390878897,1760184640286,-500.0,0.00024657,9]
[390878898,1760184640296,-500.0,0.00024657,9]
[390878899,1760184640305,-500.0,0.00024657,9]
[390878900,1760184640314,-500.0,0.00024657,9]
[390878901,1760184640323,-500.0,0.00024657,9]
[390878902,1760184640333,-500.0,0.00024657,9]
[390878903,1760184640342,-500.0,0.00024657,9]
[390878904,1760184640351,-500.0,0.00024657,9]
[390878905,1760184640360,-500.0,0.00024657,9]
[390878906,1760184640370,-500.0,0.00024657,9]
[390878907,1760184640379,-500.0,0.00024657,9]
[390878908,1760184640388,-414.57027361,0.00024657,9]
[390878909,1760184640399,-500.0,0.00024657,9]
[390878910,1760184640408,-500.0,0.00024657,9]
[390878911,1760184640417,-500.0,0.00024657,9]
[390878912,1760184640426,-500.0,0.00024657,9]
[390878913,1760184640436,-359.68,0.00024657,9]
[390878914,1760184640445,-500.0,0.00024657,9]
[390878915,1760184640454,-500.0,0.00024657,9]
[390878916,1760184640463,-500.0,0.00024657,9]
[390878917,1760184640472,-252.72397221,0.00024657,9]